Cogmind - Beta 13 @@@ ROGUE MODE // 2024.03.26 @ 02:46:21 Player: f_ Result: Destroyed by D-53 Grenadier with Mini Grenade Launcher Performance ------------- Evolutions (2) 1000 Regions Visited (6) 1200 Robots Destroyed (129) 645 Value Destroyed (2738) 2738 Prototype IDs (7) 140 Alien Tech Used (0) 0 Bonus (468) 468 TOTAL SCORE: 6191 Bonus ------- High Alert Combat Kills 162 Follower Combat Kills 483 Friendly Fire -177 Cogmind --------- Core Integrity 0/550 Matter 242/300 Energy 149/150 System Corruption 0% Temperature Cool (30) Movement Rolling (215) Ox9 Location -8/Storage Parts ------- > --- POWER (1) -------- Light Angular Momentum Engine > --- PROPULSION (2) --- Wheel > --- UTILITY (6) ------ Huge Storage Unit Improved Sensor Array Improved Signal Interpreter Improved Power Shielding > --- WEAPON (2) ------- Scythe > --- INVENTORY (25) --- Light Nuclear Core Light Nuclear Core Compact Wheel Compact Wheel Advanced Heat Sink Signal Interpreter Melee Analysis Suite Core Analyzer Microactuators Improved Power Shielding Improved Power Shielding Improved Propulsion Shielding Hardlight Generator Improved Shield Generator System Restoration Module Drone Bay (2/2) Drone Bay (2/2) Drone Bay (2/2) Drone Bay (2/2) Drone Bay (2/2) Drone Bay (2/2) Heavy Particle Cannon Flak Gun Remote Datajack Axe Peak State ------------ > --- POWER ------------ Light Nuclear Core > --- PROPULSION ------- Wheel Armored Wheel > --- UTILITY ---------- Huge Storage Unit Experimental Sensor Array Signal Interpreter Hardened Medium Armor Plating Hardened Medium Armor Plating Reflective Plating > --- WEAPON ----------- Lightning Gun Assault Cannon > --- INVENTORY -------- Light Ion Engine Light Nuclear Core Light Nuclear Core Signal Interpreter Melee Analysis Suite Core Analyzer Microactuators Improved Power Shielding Improved Power Shielding Hardened Light Armor Plating Hardened Medium Armor Plating Reflective Plating Hardlight Generator Improved Shield Generator Hacking Suite Advanced Beam Cannon Heavy Particle Cannon EMP Blaster Remote Datajack Scythe Scythe [Rating: 39] Favorites ----------- Power Light Deuterium Engine Engine Light Deuterium Engine Power Core Light Nuclear Core Propulsion Wheel Wheel Wheel Utility Hardened Medium Armor Plating Device Experimental Sensor Array Storage Large Storage Unit Processor Signal Interpreter Protection Hardened Medium Armor Plating Weapon Improved Grenade Launcher Energy Gun Improved EM Shotgun Energy Cannon Heavy Particle Cannon Ballistic Gun Autogun Ballistic Cannon Assault Cannon Launcher Improved Grenade Launcher Impact Weapon Maul Slashing Weapon Scythe Build | -11 -10 -10 -9 -9 -8 -8 ------- Run | Yrd Mat Min Mat Min Mat Sto Slots Evolved 4 | . . . 2 . 2 . Power . | . . . . . . . Propulsion . | . . . . . . . Utility 4 | . . . 2 . 2 . Weapon . | . . . . . . . Parts Attached 72 | 6 7 4 14 8 19 14 Power 8 | 1 . . 2 1 3 1 Engine 6 | 1 . . 2 1 1 1 Core 2 | . . . . . 2 . Reactor . | . . . . . . . Propulsion 21 | 2 2 3 3 3 4 4 Treads . | . . . . . . . Leg . | . . . . . . . Wheel 21 | 2 2 3 3 3 4 4 Hover . | . . . . . . . Flight . | . . . . . . . Utility 25 | 1 2 1 4 1 8 8 Device 3 | . . 1 . . . 2 Storage 4 | 1 1 . . . 2 . Processor 3 | . . . 1 . . 2 Hackware . | . . . . . . . Protection 15 | . 1 . 3 1 6 4 Artifact . | . . . . . . . Weapon 18 | 2 3 . 5 3 4 1 Energy Gun 5 | 2 2 . . 1 . . Energy Cannon 2 | . . . 1 . 1 . Ballistic Gun 1 | . . . 1 . . . Ballistic Cannon 2 | . . . . 1 1 . Launcher 6 | . 1 . 2 1 1 1 Special Weapon . | . . . . . . . Impact Weapon 1 | . . . 1 . . . Slashing Weapon 1 | . . . . . 1 . Piercing Weapon . | . . . . . . . Special Melee Weapon . | . . . . . . . Unidentified Prototypes 2 | . 1 1 . . . . Parts Lost 22 | . 1 1 5 3 6 6 Power 3 | . . . 1 . 2 . Propulsion 7 | . 1 . . 3 2 1 Utility 6 | . . . 1 . 1 4 Weapon 6 | . . 1 3 . 1 1 Highest Loss Streak 4 | . 1 1 2 2 2 4 To Critical Strikes . | . . . . . . . Average Slot Usage (%) 95 | . 89 89 96 97 94 99 Engine 8 | . 14 14 9 11 3 6 Core 1 | . . . . . 5 2 Wheel 20 | . 22 28 22 19 16 18 Device 8 | . . 2 11 11 9 7 Storage 10 | . 14 14 11 11 9 9 Processor 8 | . . . 11 11 9 8 Protection 17 | . 9 11 10 11 23 28 Energy Gun 6 | . 26 18 1 5 4 . Energy Cannon 2 | . . . 1 5 1 . Ballistic Cannon 2 | . . . . 7 3 . Launcher 4 | . . . 8 2 4 8 Slashing Weapon 2 | . . . . . 3 9 Naked Turns . | . . . . . . . Heaviest Build 119 | 14 32 32 43 45 116 119 Greatest Support 26 | 20 20 26 26 22 26 26 Greatest Overweight (x) 11 | . 1 1 2 3 11 9 Average Overweight (x) 2 | . . 1 1 1 4 3 Largest Inventory Capacity 25 | 8 15 15 15 15 25 25 Average Capacity 18 | 7 9 15 15 15 23 25 Most Carried 25 | 3 10 14 15 15 25 25 Average Carried 16 | . 6 11 13 14 21 24 Final Capacity 25 | 8 15 15 15 15 25 25 Final Carried 25 | 1 10 14 14 15 25 25 Class Distribution -------------------- 75% | Mutant 13% | Scavenger-Mutant 11% | Commander-Mutant Dominant Class ---------------- Mutant | -10/Materials Mutant | -10/Mines Mutant | -9/Materials Mutant | -9/Mines Mutant | -8/Materials Commander-Mutant | -8/Storage Resources | -11 -10 -10 -9 -9 -8 -8 ----------- Run | Yrd Mat Min Mat Min Mat Sto Matter Collected 1717 | 164 159 42 335 320 532 165 Remotely . | . . . . . . . Salvage Created 4217 | . 395 615 453 305 1136 1313 Parts 262 | . 39 56 36 23 51 57 Haulers Intercepted 8 | . 1 . 1 . 3 3 Recyclers Shooed 2 | . 1 1 . . . . Parts Field Recycled . | . . . . . . . Retrieved Matter . | . . . . . . . Parts Self-Destructed . | . . . . . . . Prevented . | . . . . . . . Kills | -11 -10 -10 -9 -9 -8 -8 ------- Run | Yrd Mat Min Mat Min Mat Sto Combat Hostiles Destroyed 75 | . 9 12 15 8 13 18 Melee 14 | . . . . . 2 12 Guns 22 | . 4 12 6 . . . Cannons 14 | . . . 1 8 5 . AOE 24 | . 5 . 7 . 6 6 Classes Destroyed 13 | . 6 1 2 . 3 1 Worker 15 | . . 7 4 2 2 . Builder 8 | . 1 1 . 2 3 1 Tunneler 4 | . 1 3 . . . . Hauler 8 | . 1 . 1 . 3 3 Recycler 9 | . 1 2 . . 3 3 Mechanic 1 | . . . . . . 1 Operator 1 | . . . . . 1 . Watcher 7 | . 2 . 1 . 3 1 Swarmer 32 | . 9 12 7 3 . 1 Grunt 31 | . . . 6 3 8 14 Duelist 1 | . . . . . 1 . Sentry 10 | . . . 2 2 3 3 Hunter 1 | . . . . . 1 . Thug 1 | . . . . . 1 . Best Kill Streak 7 | . 7 7 5 3 6 7 Combat Bots Only 6 | . 6 3 4 2 4 6 Max Kills in Single Turn 3 | . 3 2 2 1 2 2 Gunslinging 1 | . . 1 . . . . Exploded 3 | . 3 . 2 . 2 2 Melee 1 | . . . . . 1 1 Uniques/NPCs Destroyed . | . . . . . . . Combat | -11 -10 -10 -9 -9 -8 -8 -------- Run | Yrd Mat Min Mat Min Mat Sto Hostile Shots Fired 315 | . 19 22 60 46 85 83 Missed 84 | . 7 7 14 8 20 28 Damage Taken 3791 | . 225 196 651 406 993 1320 Core 877 | . 32 53 171 51 112 458 Absorbed by Shields . | . . . . . . . Redirected to Shielding 162 | . . . . . . 162 Ignored by Resistances 154 | . . . . . 74 80 Regen/Repaired (Parts) 130 | . . . 66 . . 64 Core Remaining (%) 70 | 100 . 66 . 44 . . Volleys Fired 194 | . 15 30 64 30 49 6 Largest 2 | . 2 2 1 2 2 1 Hottest 123 | . 90 90 75 119 123 36 Shots Fired 279 | . 30 45 64 56 78 6 Gun 144 | . 30 45 39 1 29 . Cannon 93 | . . . 8 52 33 . Launcher 42 | . . . 17 3 16 6 Special . | . . . . . . . Kinetic 89 | . . . 35 26 28 . Thermal 39 | . . . 8 26 5 . Explosive 30 | . . . 17 . 7 6 Electromagnetic 121 | . 30 45 4 4 38 . Robot Hit Streak 16 | . 7 6 16 7 7 4 Robot Miss Streak 5 | . 4 5 2 3 4 . Penetration Max . | . . . . . . . Secondary Targets 2 | . 1 1 . . . . Max Gunslinging Chain 1 | . 1 1 . . . . Shots Hit Robots 248 | . 23 32 52 33 54 54 Core Hits 169 | . 17 27 26 12 40 47 Critical Kills . | . . . . . . . Critical Parts Destroyed . | . . . . . . . Critical Strikes 5 | . . . . . 1 4 Corrupt 1 | . . . . . 1 . Sever 4 | . . . . . . 4 Melee Attacks 94 | . . . 5 . 21 68 Impact 5 | . . . 5 . . . Slashing 89 | . . . . . 21 68 Piercing . | . . . . . . . Sneak Attacks 22 | . . . 1 . 9 12 Combat Hostiles . | . . . . . . . Follow-up Attacks . | . . . . . . . Damage Inflicted 8750 | . 498 500 1585 834 2382 2951 Guns 1573 | . 326 399 384 20 444 . Cannons 1446 | . . . 175 802 469 . Explosions 2829 | . 172 101 787 12 757 1000 Melee 2902 | . . . 239 . 712 1951 Ramming . | . . . . . . . Kinetic 1138 | . . . 328 402 408 . Thermal 945 | . 119 101 175 400 150 . Explosive 2278 | . . . 787 . 491 1000 Electromagnetic 1487 | . 379 399 56 32 621 . Impact 239 | . . . 239 . . . Slashing 2663 | . . . . . 712 1951 Piercing . | . . . . . . . Highest Corruption . | . . . . . . . Average Corruption . | . . . . . . . Corruption Purged . | . . . . . . . Corruption Blocked . | . . . . . . . Overload Shots . | . . . . . . . Overflow Damage 288 | . 16 . 75 36 71 90 Projectiles 42 | . . . . 36 6 . Explosions 39 | . 16 . 11 . 12 . Melee 207 | . . . 64 . 53 90 Knockbacks 5 | . . . 1 1 3 . Impact 1 | . . . 1 . . . Kinetic 4 | . . . . 1 3 . Secondary . | . . . . . . . Self-Inflicted Damage 433 | . 126 74 151 . 18 64 Shots 15 | . 4 2 5 . 2 2 Rammed . | . . . . . . . Targets Rammed . | . . . . . . . Kicked . | . . . . . . . Crushed . | . . . . . . . Highest Temperature 543 | . 146 165 258 427 543 30 Average Temperature 127 | . 49 45 51 138 192 9 Received Heat Transfer 1251 | . . . 135 108 513 495 Effects 29 | . . . . 6 23 . Shutdowns 5 | . . . . 1 4 . Energy Bleed 4 | . . . . 1 3 . Interference 12 | . . . . 3 9 . Matter Decay 3 | . . . . 1 2 . Damage (minor) 1 | . . . . . 1 . Damage (major) 4 | . . . . . 4 . Siege Activations . | . . . . . . . Robots Corrupted . | . . . . . . . Combat Hostiles . | . . . . . . . Parts Fried 5 | . 1 . 2 . 2 . Impact Corruptions 3 | . . . 3 . . . Robots Melted . | . . . . . . . Combat Hostiles . | . . . . . . . Parts Melted 5 | . 1 . . . 4 . Heat Transferred 1512 | . 250 150 259 592 261 . Parts Sabotaged . | . . . . . . . Parts Stolen . | . . . . . . . Parts Stripped . | . . . . . . . Power Chain Reactions 8 | . 4 2 . . 2 . Alert | -11 -10 -10 -9 -9 -8 -8 ------- Run | Yrd Mat Min Mat Min Mat Sto Peak Influence 799 | . 373 404 460 294 279 799 Initial 179 | . . 67 90 179 . 58 Average 204 | . 246 266 291 104 130 306 Maximum Alert Level 3 | . 1 2 2 1 1 3 Low Security (%) 58 | 100 35 18 26 83 80 53 Level 1 27 | . 64 63 41 16 19 10 Level 2 12 | . . 18 31 . . 27 Level 3 1 | . . . . . . 8 Level 4 . | . . . . . . . Level 5 . | . . . . . . . High Security . | . . . . . . . Max Security . | . . . . . . . Squads Dispatched 12 | . . . 1 1 1 9 Investigation 3 | . . . . 1 . 2 Extermination . | . . . . . . . Reinforcement 3 | . . . 1 . 1 1 Assault 2 | . . . . . . 2 Garrison 4 | . . . . . . 4 Intercept . | . . . . . . . Searches Triggered . | . . . . . . . Construction Impeded 1 | . . . . . . 1 Haulers Reinforced . | . . . . . . . Active Scanning Responses . | . . . . . . . Cargo Convoy Interrupts . | . . . . . . . Stealth | -11 -10 -10 -9 -9 -8 -8 --------- Run | Yrd Mat Min Mat Min Mat Sto Distress Signals 7 | . 1 . 3 1 1 1 Communications Jammed . | . . . . . . . Distress Signals . | . . . . . . . Times Spotted 121 | . 12 12 23 11 20 43 Peak Tracking Total 10 | . 4 3 5 3 4 10 Tactical Retreats 10 | . 1 . 2 1 2 4 Traps | -11 -10 -10 -9 -9 -8 -8 ------- Run | Yrd Mat Min Mat Min Mat Sto Traps Triggered 1 | . . . . . . 1 Indirectly . | . . . . . . . Trap Hack Attempts . | . . . . . . . Triggered . | . . . . . . . Disarmed . | . . . . . . . Reprogrammed . | . . . . . . . Reused . | . . . . . . . Traps Extracted . | . . . . . . . Installed . | . . . . . . . Triggered . | . . . . . . . Machines | -11 -10 -10 -9 -9 -8 -8 ---------- Run | Yrd Mat Min Mat Min Mat Sto Machines Disabled 13 | . 2 1 . 1 5 4 Max in Single Turn 3 | . 2 1 . . 3 1 Machines Repaired . | . . . . . . . Machines Dismantled . | . . . . . . . Machines Sabotaged . | . . . . . . . Overloaded Fab Kills . | . . . . . . . Hacking | -11 -10 -10 -9 -9 -8 -8 --------- Run | Yrd Mat Min Mat Min Mat Sto Machines Accessed 19 | . 4 . 2 1 1 11 Terminals 14 | . 3 . 1 . 1 9 Fabricators . | . . . . . . . Repair Stations 2 | . . . 1 . . 1 Recycling Units 2 | . 1 . . . . 1 Scanalyzers . | . . . . . . . Garrison Access . | . . . . . . . Total Hacks 35 | . 7 . 3 1 2 22 Successful 23 | . 7 . 3 1 1 11 Failed 12 | . . . . . 1 11 Catastrophic 2 | . . . . . . 2 Database Lockouts . | . . . . . . . Manual . | . . . . . . . Terminals 26 | . 5 . 1 . 2 18 Fabricators . | . . . . . . . Repair Stations 5 | . . . 2 . . 3 Recycling Units 3 | . 2 . . . . 1 Scanalyzers . | . . . . . . . Garrison Access . | . . . . . . . Terminal Hacks 16 | . 5 . 1 1 1 8 Record 1 | . . . 1 . . . Robot Analysis 1 | . . . . . . 1 Prototype ID Bank 3 | . 2 . . . . 1 Open Door 3 | . . . . 1 . 2 Branch Access Points 1 | . . . . . . 1 Alert Level 2 | . 1 . . . . 1 Unreport Threat 2 | . . . . . 1 1 Locate Traps 2 | . 1 . . . . 1 Dispatch Records 1 | . 1 . . . . . Fabricator Hacks . | . . . . . . . Repair Station Hacks 4 | . . . 2 . . 2 Scan Component 2 | . . . 1 . . 1 Repair 2 | . . . 1 . . 1 Recycling Unit Hacks 3 | . 2 . . . . 1 Report Inventory 2 | . 1 . . . . 1 Retrieve Components 1 | . 1 . . . . . Scanalyzer . | . . . . . . . Garrison Access Hacks . | . . . . . . . Unauthorized Hacks . | . . . . . . . Terminals . | . . . . . . . Fabricators . | . . . . . . . Repair Stations . | . . . . . . . Recycling Units . | . . . . . . . Scanalyzers . | . . . . . . . Garrison Access . | . . . . . . . Data Cores Recovered 1 | . . . . . 1 . Used . | . . . . . . . Hacking Detections 9 | . 1 . 1 . . 7 Full Trace Events 2 | . . . . . . 2 Feedback Events . | . . . . . . . Feedback Blocked . | . . . . . . . Robot Schematics Acquired . | . . . . . . . Robots Built . | . . . . . . . Authchips . | . . . . . . . Time . | . . . . . . . Total Robot Build Rating . | . . . . . . . Part Schematics Acquired . | . . . . . . . Parts Built . | . . . . . . . Authchips . | . . . . . . . Time . | . . . . . . . Total Part Build Rating . | . . . . . . . Parts Repaired 2 | . . . 1 . . 1 Time 70 | . . . 32 . . 38 Parts Recycled . | . . . . . . . Recycled Matter . | . . . . . . . Retrieved Matter . | . . . . . . . Retrieved Components 2 | . 2 . . . . . Parts Scanalyzed . | . . . . . . . Part Schematics Acquired . | . . . . . . . Parts Damaged . | . . . . . . . Bothacking | -11 -10 -10 -9 -9 -8 -8 ------------ Run | Yrd Mat Min Mat Min Mat Sto Used RIF Installer . | . . . . . . . Robots Hacked . | . . . . . . . Non-combat . | . . . . . . . Combat . | . . . . . . . Robot Hacks Applied . | . . . . . . . Relay Couplers Released . | . . . . . . . Fabnet Peak Effective % . | . . . . . . . Robots Rewired . | . . . . . . . Allies Hacked . | . . . . . . . Hacks Repelled . | . . . . . . . Allies | -11 -10 -10 -9 -9 -8 -8 -------- Run | Yrd Mat Min Mat Min Mat Sto Total Allies 13 | . . . . 1 . 12 Largest Group 10 | . . . . 1 . 10 Highest-Rated Group 203 | . . . . 31 . 203 Highest-Rated Ally 31 | . . . . 31 . 31 Total Orders . | . . . . . . . Ally Attacks 122 | . . . . 4 . 118 Total Damage 1783 | . . . . 266 . 1517 Kills 18 | . . . . 2 . 16 Allies Corrupted . | . . . . . . . Allies Melted . | . . . . . . . Intel | -11 -10 -10 -9 -9 -8 -8 ------- Run | Yrd Mat Min Mat Min Mat Sto Robot Analysis Total 1 | . . . . . . 1 Derelict Logs Recovered 2 | . . 1 . 1 . . Drone Launches . | . . . . . . . Drone Recoveries . | . . . . . . . Exploration | -11 -10 -10 -9 -9 -8 -8 ------------- Run | Yrd Mat Min Mat Min Mat Sto Turns Passed 6098 | 43 437 647 776 1757 1090 1348 Spaces Moved 4016 | 40 396 543 506 1375 482 674 Core 7 | 7 . . . . . . Treads . | . . . . . . . Legs . | . . . . . . . Wheels 4009 | 33 396 543 506 1375 482 674 Hover . | . . . . . . . Flight . | . . . . . . . Fastest Speed 50 | 50 80 95 95 100 100 135 Average Speed 116 | 74 88 102 102 109 155 146 Slowest Speed 245 | 80 95 105 110 135 245 215 Overloaded Moves . | . . . . . . . Propulsion Burnouts . | . . . . . . . Robots Hopped . | . . . . . . . Cave-ins Triggered . | . . . . . . . Exploration Rate (%) 58 | 4 67 86 35 100 32 86 Regions Visited 6 Branch Regions 3 Pre-discovered Areas . | . . . . . . . Known Exits Taken 3 | . . . 1 1 1 . Unknown Exits Taken 3 | 1 1 1 . . . . Scrap Searched 3 | . . 1 . 2 . . Spaces Dug 8 | . . . . . . 8 Terrain Destroyed 294 | . 17 15 118 14 89 41 Melee 8 | . . . . . . 8 Projectile 20 | . . . 1 14 5 . AOE 266 | . 17 15 117 . 84 33 Terrain Rammed . | . . . . . . . Walls Destroyed . | . . . . . . . Machines Disabled . | . . . . . . . Actions | -11 -10 -10 -9 -9 -8 -8 --------- Run | Yrd Mat Min Mat Min Mat Sto Total 5019 | 52 452 587 705 1572 716 935 Wait 485 | . 14 3 81 144 99 144 Move 4010 | 39 395 542 505 1374 481 674 Hop . | . . . . . . . Pick Up 99 | 7 14 6 21 9 30 12 Fast Attach 11 | . 1 . . 2 3 5 Attach 28 | 6 2 . 9 2 5 4 Detach 1 | . 1 . . . . . Swap 33 | . 4 4 5 4 11 5 Drop 64 | . 6 2 15 7 17 17 Fire 194 | . 15 30 64 30 49 6 Melee 94 | . . . 5 . 21 68 Ram . | . . . . . . . Kick . | . . . . . . . Crush . | . . . . . . . Escape Stasis . | . . . . . . . Rewire . | . . . . . . . Trap . | . . . . . . . Miscellaneous . | . . . . . . . Route ------- -11/Scrapyard -10/Materials (discovered 3 exits: *Mat x2 / [*Min]) -10/Mines (discovered 3 exits: *Mat x2 / [*Exi]) -9/Materials (discovered 2 exits: Mat / *Min) -9/Mines (discovered 2 exits: *Mat x2) -8/Materials -8/Storage (discovered 2 exits: *Fac / Rec) History --------- Turn | Location | Event 31 | -11/Scrapyard | Discovered new exit (range 16) 44 | -11/Scrapyard | Entered Materials 199 | -10/Materials | Discovered new exit (range 13) 285 | -10/Materials | Discovered new exit (range 6) 318 | -10/Materials | Build established: Mutant 418 | -10/Materials | Discovered new exit (range 3) 481 | -10/Materials | Entered Mines 610 | -10/Mines | Learned 4 Materials zone layouts 624 | -10/Mines | Discovered new exit (range 6) 682 | -10/Mines | Discovered new exit (range 9) 790 | -10/Mines | Deemed a non-threat by the Exiles lab entrance 790 | -10/Mines | Discovered new exit (range 5) 991 | -10/Mines | Found a damaged Exp. Sensor Array with a note attached 995 | -10/Mines | Found Prototype Device 996 | -10/Mines | Identified Exp. Sensor Array 1128 | -10/Mines | Entered Materials 1128 | -9/Materials | Evolved 2 slots: Utility x2 1129 | -9/Materials | Identified exit to Materials 1179 | -9/Materials | Repaired Maul 1899 | -9/Materials | Discovered new exit (range 6) 1903 | -9/Materials | Identified exit to Mines 1904 | -9/Materials | Entered Mines 1907 | -9/Mines | Received a Mining Laser from a helpful Derelict 2070 | -9/Mines | Discovered exit to Materials (range 16) 2627 | -9/Mines | Core integrity fell below 50% 2667 | -9/Mines | Learned Materials trap positions 2680 | -9/Mines | Discovered exit to Materials (range 8) 2774 | -9/Mines | Met a Derelict shopkeep closing up shop 3661 | -9/Mines | Entered Materials 3661 | -8/Materials | Evolved 2 slots: Utility x2 3662 | -8/Materials | Loaded intel: 20 trap records 4279 | -8/Materials | Discovered new exit (range 13) 4715 | -8/Materials | Identified exit to Storage 4751 | -8/Materials | Entered Storage 4810 | -8/Storage | Repaired Imp. Grenade Launcher 4888 | -8/Storage | Build established: Scavenger-Mutant 5012 | -8/Storage | Identified exit to Recycling 5404 | -8/Storage | Assisted by bots powering up and referring to "LRC-V3" 5438 | -8/Storage | Garrison activated, responded to threat 5491 | -8/Storage | Discovered new exit (range 16) 5528 | -8/Storage | Identified exit to Factory 5705 | -8/Storage | Build established: Commander-Mutant 6058 | -8/Storage | Met a pair of Derelict thieves 6086 | -8/Storage | Garrison activated, responded to threat 6089 | -8/Storage | Core integrity fell below 50% 6098 | -8/Storage | Core integrity fell below 20% 6099 | -8/Storage | Destroyed by D-53 Grenadier with Mini Grenade Launcher Last Messages --------------- 06094_ 6Y-LAH(g) destroyed. 06094_ U-05 Engineer destroyed. 06094_ U-05 Engineer lays Concrete. 06095_ G-47 Trooper destroyed. 06095_ Storage Shell breached. 06095_ ALERT: Construction progress impeded, dispatching reinforcements to local area. 06095_ Imp. Propulsion Shielding destroyed. 06096_ U-05 Engineer lays Concrete. 06097_ G-47 Trooper destroyed. 06097_ Com. Wheel destroyed. 06097_ K-01 Serf destroyed. 06097_ U-05 Engineer lays Concrete. 06097_ K-01 Serf collects debris. 06098_ The unstable cave ceiling collapses. 06098_ Drone Bay destroyed. 06098_ U-05 Engineer builds a Wall. 06098_ Imp. Grenade Launcher destroyed. 06098_ Critical hit (Burn: +37). 06099_ The unstable cave ceiling collapses. Map ----- +----------------------------------------------------+ | + """ #??????????????????####+##+## # """??? | | # #?????????????????????# # "????? | | ##########??????????????######## # "????? | | #?"T????????????????????# / # # """""" | | #? ?????????????????????# [=![ # # | | # "?????????????????????# + / | | # ??????????????????????# ####### ######### | | +???????????????????????# #?????#%#???????? | | #???????????????????????# #?????# #???????? | | #???????????????????????########?????# #???????? | | #???####"????????????????# #########/#???????? | | ##? ! ?????????######### # #???????? | | % # ??????????#== # # # ##??????? | | # """???????????# = " # # % #??????? | | T + "?????????????#= # # """ """ ##??????? | | # "?????????????# " uk""" """ #???????? | | # ????????????# == # [= # """ """ #???????? | | /#####/#???????????#= = # ! #???????? | | % # #???????????###### #?###???? | | #?#???????????????# [ #############???? | | """ #???????????####### # ##??????### ##### | | """ #???????????# "" #??????# % | | """ #????????????????" d " ####??## | | """ #????????????????" #??#" | | """ #?????????????"[[" #??## """ """ | | #????????w?????" [[ @ ud #???# """ """ | | +#####????######????""=] # ##### """ """ | | #????????# #?????" %% dg i ## | | #????????# #???? g r [ ## | | #????????# ########### # = % #####+#### | | ##### #??# ## #??## ! %[#= | | #??# ## #???# # *+%= | | =##### #??# ## #??## s## "" ==#[ | | %#???# #### ## #### ## """%=%##### #### | | =#???# + ## %+ ## """==*#???# #??? | | ######## # ! ## [# ## ! !%#???# #??? | | %# # ##+#####+##+## ###/#####/#???# #??? | | # +% ! ##### #???# ??? | | # # %! #####+## ##+##### #"""# #???# ??? | | # # ]*!# # # # #"T"# ##### | | " !+%= + # + ! + = | | +# %###### ### ####+###"%"###+####?? | | ########????# #?# ## ###"G"#????????? | | #???????????# #?# [ # T## " #????????? | | #???????????# #?# * = # ######????????? | | #???????????########?######## #?????????????? | | ##???????????????????????????#######?????????????? | | | | | | | +----------------------------------------------------+ Best States ------------- Heat Dissipation 31 Energy Generation 18 Energy Capacity 250 Matter Stores 300 Matter Capacity 300 Sight Range 16 Robot Scan Range 20 Terrain Scan Density 10 Armor Coverage 750 Resistance: TH 10 Power Shielding 66 Propulsion Shielding 66 Evasion (%) 44 Melee Accuracy 5 Item Schematics ----------------- None Robot Schematics ------------------ None Fabricated ------------ Nothing Alien Tech Used ----------------- None Achievements -------------- None Challenges ------------ None Game ------ Seed DiametricStasisKit Manual? 0 Play Time 01:04:17 Cumulative 74.7 hours Start 2024.03.26 @ 01:44:12 End 2024.03.26 @ 02:46:21 Sessions 1 Manual Loads 0 Difficulty Rogue Special Mode None Game No. 69 Rogue 67 Adventurer 0 Explorer 2 Win Type - Total 0 Types 0/0/0/0/0/0/0/0/0 Lore% 21 Gallery% 34 Achievement% 22 Wizard Run 0 Options --------- Layout 1 ASCII 0 Keyboard 0 Movement Mouse Keybinds 0 Fullscreen 2 Font 48/Tamsyn Map View 50x35 Zoom Use 0% Tactical HUD 1 Map Filters NONE Filters NONE Steam 1 RUN: b7c5181a-c0be-4e9a-826f-68abfc70c65d